Cogmind - Beta 12 @@@ ROGUE MODE // 2024.01.20 @ 22:42:25 Player: Dendrocnid Result: Destroyed by C-35 Carver with Carbide Saw Performance ------------- Evolutions (6) 3000 Regions Visited (10) 2000 Robots Destroyed (16) 80 Value Destroyed (508) 508 Prototype IDs (0) 0 Alien Tech Used (0) 0 Bonus (1820) 1820 TOTAL SCORE: 7408 Bonus ------- Follower Combat Kills 120 Entered Garrisons 200 Used RIF Installer 500 Entered DSFs 1000 Cogmind --------- Core Integrity 0/1150 Matter 278/300 Energy 100/100 System Corruption 3% Temperature Cool (0) Movement Core (50) Location -4/Factory Parts ------- > --- POWER (2) -------- (None) > --- PROPULSION (6) --- (None) > --- UTILITY (9) ------ (None) > --- WEAPON (2) ------- (None) > --- INVENTORY (5) ---- Light Antimatter Reactor Compact Wheel Advanced Weight Redist. System Improved Datajack Peak State ------------ > --- POWER ------------ Light Nuclear Core > --- PROPULSION ------- Flight Unit Cesium-ion Thruster Cesium-ion Thruster > --- UTILITY ---------- Heat Sink Improved Sensor Array Transmission Jammer Improved Light Armor Plating Improved Hacking Suite Relay Coupler [Behemoth] > --- WEAPON ----------- Power Maul > --- INVENTORY -------- Armored Wheel Advanced Weight Redist. System Relay Coupler [Swarmer] Improved Datajack [Rating: 37] Favorites ----------- Power Ion Engine Engine Ion Engine Power Core Light Nuclear Core Reactor Light Antimatter Reactor Propulsion Flight Unit Leg Aluminum Leg Wheel Wheel Flight Unit Flight Unit Utility Heat Sink Device Heat Sink Storage Huge Storage Unit Hackware Hacking Suite Protection Improved Light Armor Plating Weapon Power Maul Energy Gun Medium Laser Energy Cannon Beam Cannon Ballistic Gun Assault Rifle Impact Weapon Power Maul Special Melee Weapon Improved Datajack Build | -11 -10 -9 -8 -7 -6 -6 -6 -5 -5 -4 ------- Run | Jun Mat Mat Mat Fac Fac DSF Gar Fac DSF Fac Slots Evolved 12 | . . 2 2 2 2 . . 2 . 2 Power 1 | . . . . . 1 . . . . . Propulsion 4 | . . 1 1 . 1 . . 1 . . Utility 7 | . . 1 1 2 . . . 1 . 2 Weapon . | . . . . . . . . . . . Parts Attached 50 | 5 8 8 7 6 1 1 4 2 . 8 Power 5 | 1 . 1 1 . 1 . . . . 1 Engine 3 | 1 . 1 . . 1 . . . . . Core 1 | . . . 1 . . . . . . . Reactor 1 | . . . . . . . . . . 1 Propulsion 17 | 2 4 3 3 1 . . 1 . . 3 Treads . | . . . . . . . . . . . Leg 2 | . 2 . . . . . . . . . Wheel 6 | 2 2 . . . . . 1 . . 1 Hover . | . . . . . . . . . . . Flight 9 | . . 3 3 1 . . . . . 2 Utility 16 | 1 3 . 3 4 . . 2 1 . 2 Device 5 | . 1 . 1 2 . . . 1 . . Storage 3 | 1 2 . . . . . . . . . Processor . | . . . . . . . . . . . Hackware 5 | . . . . 1 . . 2 . . 2 Protection 3 | . . . 2 1 . . . . . . Artifact . | . . . . . . . . . . . Weapon 12 | 1 1 4 . 1 . 1 1 1 . 2 Energy Gun 1 | . . 1 . . . . . . . . Energy Cannon 1 | . 1 . . . . . . . . . Ballistic Gun 3 | 1 . 2 . . . . . . . . Ballistic Cannon . | . . . . . . . . . . . Launcher . | . . . . . . . . . . . Special Weapon . | . . . . . . . . . . . Impact Weapon 4 | . . 1 . 1 . . . 1 . 1 Slashing Weapon . | . . . . . . . . . . . Piercing Weapon . | . . . . . . . . . . . Special Melee Weapon 3 | . . . . . . 1 1 . . 1 Unidentified Prototypes . | . . . . . . . . . . . Parts Lost 19 | . . 2 . 2 . . 11 . 1 3 Power 3 | . . 1 . . . . 2 . . . Propulsion 8 | . . 1 . 2 . . 4 . . 1 Utility 7 | . . . . . . . 5 . 1 1 Weapon 1 | . . . . . . . . . . 1 Highest Loss Streak 11 | . . 2 . 2 . . 11 . 1 3 To Critical Strikes . | . . . . . . . . . . . Average Slot Usage (%) 64 | . 88 71 72 77 80 80 62 11 11 9 Engine 5 | . 14 10 4 . 6 6 3 . . . Core 2 | . . . 4 7 6 6 4 . . . Leg 2 | . 7 . . . . . . . . . Wheel 6 | . 20 9 . . . . . . . . Flight 11 | . . 13 36 24 20 20 14 . . 2 Device 12 | . 8 11 9 25 26 26 20 5 5 . Storage 4 | . 14 6 . . . . . . . . Hackware 2 | . . . . 3 6 6 7 5 5 3 Protection 2 | . . . 8 7 6 6 4 . . . Energy Cannon 3 | . 8 6 . . . . . . . . Ballistic Gun 4 | . 14 10 . . . . . . . . Impact Weapon 3 | . . 1 9 7 6 6 5 . . 3 Naked Turns 100 | . . . . . . . . . 4 96 Heaviest Build 92 | 12 91 92 17 18 19 20 19 1 1 4 Greatest Support 23 | 20 20 20 18 18 23 23 23 3 3 7 Greatest Overweight (x) 9 | . 4 9 . 1 . . 3 . . 1 Average Overweight (x) . | . 2 1 . . . . . . . . Largest Inventory Capacity 25 | 8 25 25 5 5 5 5 5 5 5 5 Average Capacity 9 | 7 18 16 5 5 5 5 5 5 5 5 Most Carried 10 | 7 9 10 5 5 3 4 5 4 4 5 Average Carried 4 | 3 6 5 4 4 3 3 3 3 4 4 Final Capacity 25 | 8 25 5 5 5 5 5 5 5 5 5 Final Carried 7 | 7 7 4 5 4 3 4 4 4 4 4 Class Distribution -------------------- 62% | Mutant 31% | Sprinter 3% | Scavenger-Mutant Dominant Class ---------------- Mutant | -10/Materials Mutant | -9/Materials Sprinter | -8/Materials Sprinter | -7/Factory Sprinter | -6/Factory Sprinter | -6/DSF Sprinter | -6/Garrison Mutant | -5/Factory Mutant | -5/DSF Mutant | -4/Factory Resources | -11 -10 -9 -8 -7 -6 -6 -6 -5 -5 -4 ----------- Run | Jun Mat Mat Mat Fac Fac DSF Gar Fac DSF Fac Matter Collected 688 | 203 125 55 . 78 . 49 122 . . 56 Remotely . | . . . . . . . . . . . Salvage Created 545 | . 147 55 . 78 . 49 216 . . . Parts 25 | . 13 8 . . . 2 2 . . . Haulers Intercepted . | . . . . . . . . . . . Recyclers Shooed . | . . . . . . . . . . . Parts Field Recycled . | . . . . . . . . . . . Retrieved Matter . | . . . . . . . . . . . Parts Self-Destructed . | . . . . . . . . . . . Prevented . | . . . . . . . . . . . Kills | -11 -10 -9 -8 -7 -6 -6 -6 -5 -5 -4 ------- Run | Jun Mat Mat Mat Fac Fac DSF Gar Fac DSF Fac Combat Hostiles Destroyed 13 | . 5 4 . 3 . 1 . . . . Melee 1 | . . . . 1 . . . . . . Guns 8 | . 5 3 . . . . . . . . Cannons 1 | . . 1 . . . . . . . . Classes Destroyed 6 | . 4 . . 1 . 1 . . . . Worker 1 | . 1 . . . . . . . . . Operator 1 | . . . . 1 . . . . . . Watcher 1 | . 1 . . . . . . . . . Swarmer 11 | . 4 4 . 3 . . . . . . Grunt 1 | . 1 . . . . . . . . . Specialist 1 | . . . . . . 1 . . . . Best Kill Streak 4 | . 4 4 . 2 . 1 . . . . Combat Bots Only 4 | . 2 4 . 2 . 1 . . . . Max Kills in Single Turn 1 | . 1 1 . 1 . 1 . . . . Gunslinging . | . . . . . . . . . . . Exploded . | . . . . . . . . . . . Melee 1 | . . . . 1 . . . . . . Uniques/NPCs Destroyed . | . . . . . . . . . . . Combat | -11 -10 -9 -8 -7 -6 -6 -6 -5 -5 -4 -------- Run | Jun Mat Mat Mat Fac Fac DSF Gar Fac DSF Fac Damage Taken 3389 | . 251 204 17 324 . 20 1185 . 153 1235 Core 2102 | . 66 36 . 91 . . 614 . 129 1166 Absorbed by Shields 45 | . . . . . . . 45 . . . Core Remaining (%) 80 | 100 73 91 100 87 . . 27 . 87 . Volleys Fired 34 | . 18 16 . . . . . . . . Largest 2 | . 2 2 . . . . . . . . Hottest 83 | . 80 83 . . . . . . . . Shots Fired 65 | . 33 32 . . . . . . . . Gun 39 | . 18 21 . . . . . . . . Cannon 26 | . 15 11 . . . . . . . . Launcher . | . . . . . . . . . . . Special . | . . . . . . . . . . . Kinetic 34 | . 18 16 . . . . . . . . Thermal 31 | . 15 16 . . . . . . . . Explosive . | . . . . . . . . . . . Electromagnetic . | . . . . . . . . . . . Robot Hit Streak 4 | . 4 3 . . . . . . . . Robot Miss Streak 4 | . 4 4 . . . . . . . . Penetration Max . | . . . . . . . . . . . Secondary Targets . | . . . . . . . . . . . Shots Hit Robots 53 | . 15 13 . 8 . 4 9 . . 4 Core Hits 12 | . 8 4 . . . . . . . . Critical Kills . | . . . . . . . . . . . Critical Parts Destroyed 4 | . . . . 1 . 1 2 . . . Critical Strikes 4 | . . . . 1 . 1 2 . . . Smash 4 | . . . . 1 . 1 2 . . . Melee Attacks 69 | . . 2 12 25 7 4 11 . . 8 Impact 58 | . . 2 12 25 7 1 10 . . 1 Slashing . | . . . . . . . . . . . Piercing . | . . . . . . . . . . . Sneak Attacks 2 | . . . . . . 2 . . . . Combat Hostiles 2 | . . . . . . 2 . . . . Follow-up Attacks . | . . . . . . . . . . . Damage Inflicted 1453 | . 217 175 . 383 . 37 641 . . . Guns 289 | . 166 123 . . . . . . . . Cannons 103 | . 51 52 . . . . . . . . Explosions . | . . . . . . . . . . . Melee 1061 | . . . . 383 . 37 641 . . . Ramming . | . . . . . . . . . . . Kinetic 276 | . 166 110 . . . . . . . . Thermal 116 | . 51 65 . . . . . . . . Explosive . | . . . . . . . . . . . Electromagnetic . | . . . . . . . . . . . Impact 1061 | . . . . 383 . 37 641 . . . Slashing . | . . . . . . . . . . . Piercing . | . . . . . . . . . . . Highest Corruption 3 | . . . . . . . 2 . 2 3 Average Corruption 2 | . . . . . . . 1 . 2 3 Corruption Purged . | . . . . . . . . . . . Corruption Blocked . | . . . . . . . . . . . Overload Shots . | . . . . . . . . . . . Overflow Damage 416 | . . . . 169 . 37 210 . . . Projectiles . | . . . . . . . . . . . Explosions . | . . . . . . . . . . . Melee 416 | . . . . 169 . 37 210 . . . Knockbacks 3 | . . . . 1 . 1 1 . . . Impact 3 | . . . . 1 . 1 1 . . . Kinetic . | . . . . . . . . . . . Secondary . | . . . . . . . . . . . Self-Inflicted Damage . | . . . . . . . . . . . Shots . | . . . . . . . . . . . Rammed 1 | . . . . . . . . . . 1 Targets Rammed 1 | . . . . . . . . . . 1 Kicked . | . . . . . . . . . . . Crushed . | . . . . . . . . . . . Highest Temperature 29 | . . 29 . . . . . . . . Average Temperature 12 | . . 12 . . . . . . . . Received Heat Transfer 362 | . 12 27 9 . . . 242 . . 72 Siege Activations . | . . . . . . . . . . . Robots Corrupted . | . . . . . . . . . . . Combat Hostiles . | . . . . . . . . . . . Parts Fried 9 | . . . . 2 . 4 3 . . . Impact Corruptions 19 | . . . . 9 . 2 8 . . . Robots Melted . | . . . . . . . . . . . Combat Hostiles . | . . . . . . . . . . . Parts Melted . | . . . . . . . . . . . Heat Transferred 259 | . 111 148 . . . . . . . . Parts Sabotaged . | . . . . . . . . . . . Parts Stolen . | . . . . . . . . . . . Parts Stripped . | . . . . . . . . . . . Power Chain Reactions . | . . . . . . . . . . . Missiles Intercepted . | . . . . . . . . . . . Alert | -11 -10 -9 -8 -7 -6 -6 -6 -5 -5 -4 ------- Run | Jun Mat Mat Mat Fac Fac DSF Gar Fac DSF Fac Peak Influence 200 | . 117 153 163 200 20 49 198 105 73 137 Initial 90 | . . 35 64 73 . 14 36 90 73 32 Average 82 | . 65 94 104 151 5 22 91 93 69 53 Maximum Alert Level 1 | . . . . 1 . . . . . . Low Security (%) 99 | 100 100 100 100 97 100 100 100 100 100 100 Level 1 . | . . . . 2 . . . . . . Level 2 . | . . . . . . . . . . . Level 3 . | . . . . . . . . . . . Level 4 . | . . . . . . . . . . . Level 5 . | . . . . . . . . . . . High Security . | . . . . . . . . . . . Max Security . | . . . . . . . . . . . Squads Dispatched 8 | . . 1 . 2 . . . . 1 4 Investigation 1 | . . . . . . . . . . 1 Extermination 1 | . . . . . . . . . . 1 Reinforcement 6 | . . 1 . 2 . . . . 1 2 Assault . | . . . . . . . . . . . Garrison . | . . . . . . . . . . . Intercept . | . . . . . . . . . . . Searches Triggered . | . . . . . . . . . . . Construction Impeded . | . . . . . . . . . . . Haulers Reinforced . | . . . . . . . . . . . Active Scanning Responses . | . . . . . . . . . . . Cargo Convoy Interrupts . | . . . . . . . . . . . Stealth | -11 -10 -9 -8 -7 -6 -6 -6 -5 -5 -4 --------- Run | Jun Mat Mat Mat Fac Fac DSF Gar Fac DSF Fac Distress Signals 4 | . 1 . 1 1 . . . . . 1 Communications Jammed . | . . . . . . . . . . . Distress Signals . | . . . . . . . . . . . Times Spotted 64 | . 9 6 6 6 . 3 16 . 2 16 Peak Tracking Total 10 | . 4 4 5 4 . 1 10 . 3 10 Tactical Retreats 12 | . 2 . 2 1 . 1 2 . . 4 Traps | -11 -10 -9 -8 -7 -6 -6 -6 -5 -5 -4 ------- Run | Jun Mat Mat Mat Fac Fac DSF Gar Fac DSF Fac Traps Triggered 4 | . . . . . . 2 1 . . 1 Indirectly . | . . . . . . . . . . . Trap Hack Attempts . | . . . . . . . . . . . Triggered . | . . . . . . . . . . . Disarmed . | . . . . . . . . . . . Reprogrammed . | . . . . . . . . . . . Reused . | . . . . . . . . . . . Traps Extracted . | . . . . . . . . . . . Installed . | . . . . . . . . . . . Triggered . | . . . . . . . . . . . Machines | -11 -10 -9 -8 -7 -6 -6 -6 -5 -5 -4 ---------- Run | Jun Mat Mat Mat Fac Fac DSF Gar Fac DSF Fac Machines Disabled 2 | . . . . 1 . . 1 . . . Max in Single Turn 1 | . . . . 1 . . 1 . . . Garrison Access 1 | . . . . 1 . . . . . . Garrison Relay 1 | . . . . . . . 1 . . . Machines Repaired . | . . . . . . . . . . . Machines Sabotaged . | . . . . . . . . . . . Overloaded Fab Kills . | . . . . . . . . . . . Hacking | -11 -10 -9 -8 -7 -6 -6 -6 -5 -5 -4 --------- Run | Jun Mat Mat Mat Fac Fac DSF Gar Fac DSF Fac Machines Accessed 16 | . 1 . 2 3 2 . 1 4 . 3 Terminals 12 | . 1 . 2 2 2 . 1 3 . 1 Fabricators 1 | . . . . . . . . . . 1 Repair Stations 1 | . . . . . . . . 1 . . Recycling Units . | . . . . . . . . . . . Scanalyzers 1 | . . . . . . . . . . 1 Garrison Access 1 | . . . . 1 . . . . . . Total Hacks 32 | . 1 . 4 7 5 . 1 7 . 7 Successful 10 | . 1 . 2 3 1 . . 1 . 2 Failed 22 | . . . 2 4 4 . 1 6 . 5 Catastrophic 3 | . . . . 1 . . 1 1 . . Database Lockouts . | . . . . . . . . . . . Manual 15 | . 1 . 4 4 3 . . 1 . 2 Terminals 23 | . 1 . 4 5 5 . 1 5 . 2 Fabricators 3 | . . . . . . . . . . 3 Repair Stations 2 | . . . . . . . . 2 . . Recycling Units . | . . . . . . . . . . . Scanalyzers 2 | . . . . . . . . . . 2 Garrison Access 2 | . . . . 2 . . . . . . Terminal Hacks 4 | . . . 1 1 1 . . 1 . . Part Schematic 1 | . . . 1 . . . . . . . Open DSF 3 | . . . . 1 1 . . 1 . . Fabricator Hacks 1 | . . . . . . . . . . 1 Load Schematic 1 | . . . . . . . . . . 1 Repair Station Hacks . | . . . . . . . . . . . Recycling Unit Hacks . | . . . . . . . . . . . Scanalyzer . | . . . . . . . . . . . Garrison Access Hacks 1 | . . . . 1 . . . . . . Seal Access 1 | . . . . 1 . . . . . . Unauthorized Hacks 4 | . 1 . 1 1 . . . . . 1 Terminals 4 | . 1 . 1 1 . . . . . 1 Botnet 4 | . 1 . 1 1 . . . . . 1 Fabricators . | . . . . . . . . . . . Repair Stations . | . . . . . . . . . . . Recycling Units . | . . . . . . . . . . . Scanalyzers . | . . . . . . . . . . . Garrison Access . | . . . . . . . . . . . Data Cores Recovered . | . . . . . . . . . . . Used . | . . . . . . . . . . . Hacking Detections 11 | . . . 1 2 1 . 1 3 . 3 Full Trace Events 1 | . . . . . . . . . . 1 Feedback Events . | . . . . . . . . . . . Feedback Blocked . | . . . . . . . . . . . Robot Schematics Acquired . | . . . . . . . . . . . Robots Built . | . . . . . . . . . . . Authchips . | . . . . . . . . . . . Time . | . . . . . . . . . . . Total Robot Build Rating . | . . . . . . . . . . . Part Schematics Acquired 1 | . . . 1 . . . . . . . Parts Built . | . . . . . . . . . . . Authchips . | . . . . . . . . . . . Time . | . . . . . . . . . . . Total Part Build Rating . | . . . . . . . . . . . Parts Repaired . | . . . . . . . . . . . Time . | . . . . . . . . . . . Parts Recycled . | . . . . . . . . . . . Recycled Matter . | . . . . . . . . . . . Retrieved Matter . | . . . . . . . . . . . Retrieved Components . | . . . . . . . . . . . Parts Scanalyzed . | . . . . . . . . . . . Part Schematics Acquired . | . . . . . . . . . . . Parts Damaged . | . . . . . . . . . . . Bothacking | -11 -10 -9 -8 -7 -6 -6 -6 -5 -5 -4 ------------ Run | Jun Mat Mat Mat Fac Fac DSF Gar Fac DSF Fac Used RIF Installer 1 | . . . . . . . 1 . . . Robots Hacked 6 | . . . . . . 1 1 . . 4 Non-combat . | . . . . . . . . . . . Combat 6 | . . . . . . 1 1 . . 4 Robot Hacks Applied 6 | . . . . . . 1 1 . . 4 parse_system 1 | . . . . . . 1 . . . . overload_power 1 | . . . . . . . . . . 1 streamctrl_high 2 | . . . . . . . 1 . . 1 formatsys_high 2 | . . . . . . . . . . 2 Relay Couplers Released 4 | . . . . . . . 4 . . . Machine Destruction 4 | . . . . . . . 4 . . . Attached 2 | . . . . . . . 1 . . 1 Fabnet Peak Effective % . | . . . . . . . . . . . Robots Rewired . | . . . . . . . . . . . Allies Hacked . | . . . . . . . . . . . Hacks Repelled . | . . . . . . . . . . . Allies | -11 -10 -9 -8 -7 -6 -6 -6 -5 -5 -4 -------- Run | Jun Mat Mat Mat Fac Fac DSF Gar Fac DSF Fac Total Allies 4 | . . . . . . . 1 . . 3 Largest Group 3 | . . . . . . . 1 . . 3 Highest-Rated Group 85 | . . . . . . . 85 . . 36 Highest-Rated Ally 85 | . . . . . . . 85 . . 12 Total Orders . | . . . . . . . . . . . Ally Attacks 22 | . . . . . . . 4 . . 18 Total Damage 363 | . . . . . . . 188 . . 175 Kills 4 | . . . . . . . 2 . . 2 Allies Corrupted . | . . . . . . . . . . . Allies Melted . | . . . . . . . . . . . Intel | -11 -10 -9 -8 -7 -6 -6 -6 -5 -5 -4 ------- Run | Jun Mat Mat Mat Fac Fac DSF Gar Fac DSF Fac Robot Analysis Total . | . . . . . . . . . . . Derelict Logs Recovered . | . . . . . . . . . . . Drone Launches . | . . . . . . . . . . . Drone Recoveries . | . . . . . . . . . . . Exploration | -11 -10 -9 -8 -7 -6 -6 -6 -5 -5 -4 ------------- Run | Jun Mat Mat Mat Fac Fac DSF Gar Fac DSF Fac Turns Passed 2106 | 47 565 222 110 401 87 87 143 75 19 350 Spaces Moved 2635 | 42 320 194 216 479 216 127 275 144 39 583 Core 489 | 3 . . . . . . 44 144 39 259 Treads . | . . . . . . . . . . . Legs 39 | . 39 . . . . . . . . . Wheels 375 | 39 281 51 . . . . 4 . . . Hover . | . . . . . . . . . . . Flight 1732 | . . 143 216 479 216 127 227 . . 324 Fastest Speed 28 | 50 80 34 28 28 30 30 30 50 50 45 Average Speed 50 | 77 121 69 29 28 30 30 35 50 50 47 Slowest Speed 280 | 80 140 215 31 110 30 30 280 50 50 100 Overloaded Moves . | . . . . . . . . . . . Propulsion Burnouts . | . . . . . . . . . . . Robots Hopped 4 | . . 1 . 1 . . . . . 2 Cave-ins Triggered . | . . . . . . . . . . . Exploration Rate (%) 26 | 4 46 18 21 13 6 82 35 3 43 15 Regions Visited 10 Branch Regions . Pre-discovered Areas . | . . . . . . . . . . . Known Exits Taken 2 | . . . . . 1 . . 1 . . Unknown Exits Taken 5 | 1 1 1 1 1 . . . . . . Scrap Searched . | . . . . . . . . . . . Spaces Dug 33 | . . 2 11 12 7 . . . . 1 Terrain Destroyed 33 | . . 2 11 12 7 . . . . 1 Melee 33 | . . 2 11 12 7 . . . . 1 Projectile . | . . . . . . . . . . . AOE . | . . . . . . . . . . . Terrain Rammed . | . . . . . . . . . . . Walls Destroyed . | . . . . . . . . . . . Machines Disabled . | . . . . . . . . . . . Actions | -11 -10 -9 -8 -7 -6 -6 -6 -5 -5 -4 --------- Run | Jun Mat Mat Mat Fac Fac DSF Gar Fac DSF Fac Total 3219 | 53 462 246 239 689 223 173 301 146 38 649 Wait 345 | . 103 16 . 177 . 4 . . . 45 Move 2616 | 41 319 191 215 476 215 126 273 143 38 579 Hop 4 | . . 1 . 1 . . . . . 2 Pick Up 26 | 7 6 7 1 1 . 1 2 . . 1 Fast Attach 19 | 5 3 . 3 4 . . . 1 . 3 Attach 19 | . . 6 1 2 1 1 3 1 . 4 Detach 11 | . . 1 1 1 . 1 3 1 . 3 Swap 12 | . 5 2 3 . . . 1 . . 1 Drop 18 | . 8 4 3 2 . . 1 . . . Fire 34 | . 18 16 . . . . . . . . Melee 69 | . . 2 12 25 7 4 11 . . 8 Ram 1 | . . . . . . . . . . 1 Kick . | . . . . . . . . . . . Crush . | . . . . . . . . . . . Escape Stasis 43 | . . . . . . 36 7 . . . Rewire 2 | . . . . . . . . . . 2 Trap . | . . . . . . . . . . . Miscellaneous . | . . . . . . . . . . . Route ------- -11/Junkyard -10/Materials (discovered 2 exits: [*Mat] / [*Min]) -9/Materials (discovered 2 exits: *Mat / [*Min]) -8/Materials -7/Factory -6/Factory -6/DSF -6/Garrison -5/Factory -5/DSF -4/Factory History --------- Turn | Location | Event 18 | -11/Junkyard | Discovered new exit (range 15) 48 | -11/Junkyard | Entered Materials 235 | -10/Materials | Discovered new exit (range 16) 301 | -10/Materials | Build established: Mutant 386 | -10/Materials | Discovered new exit (range 5) 613 | -10/Materials | Entered another Materials area 613 | -9/Materials | Evolved 2 slots: Propulsion x1, Utility x1 789 | -9/Materials | Discovered new exit (range 11) 824 | -9/Materials | Discovered new exit (range 11) 835 | -9/Materials | Entered another Materials area 835 | -8/Materials | Evolved 2 slots: Propulsion x1, Utility x1 935 | -8/Materials | Discovered new exit (range 8) 945 | -8/Materials | Entered Factory 945 | -7/Factory | Evolved 2 slots: Utility x2 1175 | -7/Factory | Discovered new exit (range 15) 1346 | -7/Factory | Entered another Factory area 1346 | -6/Factory | Evolved 2 slots: Power x1, Propulsion x1 1386 | -6/Factory | Build established: Sprinter 1428 | -6/Factory | Identified exit to DSF 1433 | -6/Factory | Entered DSF 1504 | -6/DSF | Discovered new exit (range 15) 1507 | -6/DSF | Additional patrols routed to DSF 1520 | -6/DSF | Entered Garrison 1559 | -6/Garrison | Spotted B-75 Beast 1580 | -6/Garrison | Installed Relay Interface Framework 1582 | -6/Garrison | Garrison Relay disabled 1592 | -6/Garrison | Triggered checkpoint 1618 | -6/Garrison | Triggered checkpoint 1618 | -6/Garrison | Triggered checkpoint 1620 | -6/Garrison | Hijacked Beast 5a control node with streamctrl_high 1631 | -6/Garrison | Triggered checkpoint 1631 | -6/Garrison | Triggered checkpoint 1644 | -6/Garrison | Core integrity fell below 50% 1656 | -6/Garrison | Discovered new exit (range 13) 1663 | -6/Garrison | Entered Factory 1663 | -5/Factory | Evolved 2 slots: Propulsion x1, Utility x1 1673 | -5/Factory | Lost 11 parts (2p4n5u) 1738 | -5/Factory | Identified exit to DSF 1738 | -5/Factory | Entered DSF 1752 | -5/DSF | Discovered new exit (range 11) 1757 | -5/DSF | Entered Factory 1757 | -4/Factory | Evolved 2 slots: Utility x2 1920 | -4/Factory | Build established: Mutant 2029 | -4/Factory | Spotted B-86 Titan 2038 | -4/Factory | Core integrity fell below 50% 2052 | -4/Factory | Lost 3 parts (1n1u1w) 2073 | -4/Factory | Core integrity fell below 20% 2107 | -4/Factory | Destroyed by C-35 Carver with Carbide Saw Last Messages --------------- 02018_ The unstable cave ceiling collapses. 02018_ Hacking Suite destroyed. 02018_ System corrupted by crushing effect (+3). 02018_ Knocked back. 02021_ Power Maul destroyed. 02031_ Penetrated by Slug. 02031_ Slug penetrates Wall. 02032_ Detecting nearby Garrison Access. 02036_ The unstable cave ceiling collapses. 02039_ M-36 Artificer fits Backup Laser VII on C-35 Carver. 02040_ U-05 Engineer lays Concrete. 02044_ Relay Coupler [Swarmer] severed. 02045_ U-05 Engineer lays Concrete. 02055_ Triggered Ambush Trap. 02055_ B-60 Warrior emerges from a hatch in the floor. 02055_ G-67 Veteran emerges from a hatch in the floor. 02055_ S-27 Virus emerges from a hatch in the floor. 02077_ W-44 Eye sends out distress signal. 02077_ Slammed into W-44 Eye. 02091_ Slug penetrates Wall. Map ----- +----------------------------------------------------+ | ?????????????????????????????????????????????????? | | ?????????????????????????????????????????????????? | | ?????????????????????????????????????????????????? | | ?????????????????????????????????????????????????? | | ?????????????????????????????????????????????????? | | ?????????????????????????????????????????????????? | | ?????????????????????????????????????????????????? | | ?????????????????????????????????????????????????? | | ?????????????????????????????????????????????????? | | ?????????????????????????????????????????????????? | | ?????????????????????????????????????????????????? | | ?????????????????????????????????????????????????? | | ????????????????#######+####?????????????????????? | | ????????????????# #???#######???????????? | | ????????????????# #?? ????????????? | | ???????????? #??# u #? !?????????????? | | ???????????? #??# #### #? ??????????????? | | ??????????? #??# #??# # """ ??????????????? | | ??????????? #??# #??# k# """ ??????????????? | | ??????#"""" #??# #??# + """ ??????????????? | | ??????#"""" ???# #??# # ??????????? | | ??????#"""" ???# #??# ###########???????????? | | ???????"""" ????# #??# c #?????????????????????? | | ??????? ????# #??# #?????????????????????? | | ???????? ?????# #??# ct#?????????????????????? | | ???????? ?????# #??# @ #?????????????????????? | | #########+####### #??# +?????????????????????? | | #??# #?????????????????????? | | #??# #?????????????????????? | | #??# #?????????????????????? | | #########+###########??# #?????????????????????? | | ???????????????????????# #?????????????????????? | | ?????????????????????# #?????????????????????? | | #????????????????????# #?????????????????????? | | #????????????????????# #?????????????????????? | | #????????????????????# ?????????????????????? | | #????????????????????# ?????????????????????? | | #????????????????????# ?????????????????????? | | ??#????????????????????? ?????????????????????? | | ???????????????????????? ?????????????????????? | | ???????????????????????? ?????????????????????? | | ?????????????????????????????????????????????????? | | ?????????????????????????????????????????????????? | | ?????????????????????????????????????????????????? | | ?????????????????????????????????????????????????? | | ?????????????????????????????????????????????????? | | ?????????????????????????????????????????????????? | | ?????????????????????????????????????????????????? | | ?????????????????????????????????????????????????? | | ?????????????????????????????????????????????????? | +----------------------------------------------------+ Best States ------------- Heat Dissipation 47 Energy Generation 19 Energy Capacity 310 Matter Stores 300 Matter Capacity 300 Sight Range 16 Robot Scan Range 16 Terrain Scan Density 10 Jamming Range 12 Additional Mass Support 9 Armor Coverage 225 Evasion (%) 64 Offensive Hacking 12 Relay Coupler Types 1 Relay Coupler Value 19 Item Schematics ----------------- Hacking Suite | -8/Materials | Hacked Robot Schematics ------------------ None Fabricated ------------ Nothing Alien Tech Used ----------------- None Achievements -------------- None Challenges ------------ None Game ------ Seed PulseLinkedMeganuke Manual? 0 Play Time 00:43:38 Cumulative 129.1 hours Start 2024.01.20 @ 19:50:48 End 2024.01.20 @ 22:42:25 Sessions 5 Manual Loads 0 Difficulty Rogue Special Mode None Game No. 207 Rogue 207 Adventurer 0 Explorer 0 Win Type - Total 0 Types 0/0/0/0/0/0/0/0/0 Lore% 31 Gallery% 51 Achievement% 43 Wizard Run 0 Options --------- ASCII 0 Keyboard 0 Movement Mouse Keybinds 0 Fullscreen 1 Font 18/SmallcapsGlow Map View 76x50 Tactical HUD 1 Map Filters NONE Filters NONE Steam 1 RUN: 6179ae4f-2cb3-420a-a375-56c50c785a24